bitfinex-derivatives/quotes_ETHF0:USTF0_20241102
["timestamp","ask_amount","ask_price","bid_price","bid_amount"]
[1730554976290,6.63874172,2479.6,2479.4,0.28239]
[1730554977396,0.28238,2479.5,2479.0,1.92309]
[1730554977591,2.36363,2480.0,2478.9,2.43682]
[1730554977592,3.2078,2480.8,2479.5,1.41192]
[1730554977797,3.2078,2480.8,2480.7,0.28224]
[1730554978093,3.2078,2480.8,2480.1,0.70579]
[1730554978294,3.2078,2480.8,2480.3,0.28229]
[1730554978493,3.2078,2480.8,2480.5,0.28226]
[1730554978494,3.49003,2480.8,2480.5,0.28226]
[1730554978694,0.28225,2480.7,2480.4,0.28228]
[1730554978895,3.49004,2480.8,2480.4,0.28227]
[1730554979095,3.2078,2480.8,2480.2,1.217]
[1730554979396,0.28226,2480.6,2480.3,1.217]
[1730554979608,3.43082172,2480.7,2480.3,1.49929]
[1730554979803,0.28226,2480.6,2480.3,1.49929]
[1730554979996,3.43081172,2480.7,2480.3,1.49929]
[1730554980303,3.14856172,2480.7,2480.3,1.49929]
[1730554980607,3.43081172,2480.7,2480.3,1.49929]
[1730554980903,3.43081172,2480.7,2480.3,1.217]
[1730554981094,3.43081172,2480.7,2480.4,0.28228]
[1730554981298,0.28226,2480.6,2480.3,1.49928]
[1730554981790,3.2078,2480.8,2480.7,0.28224]
[1730554981993,4.05880566,2480.9,2480.8,0.28223]
[1730554983800,6.6121,2481.4,2480.8,0.28223]
[1730554983801,6.6121,2481.4,2481.3,0.28218]
[1730554984297,3.4043,2481.4,2481.3,0.28218]
[1730554984698,3.2078,2481.7,2480.9,4.4248]
[1730554984899,3.48993,2481.7,2481.3,0.28217]
[1730554985093,0.20162537,2481.6,2480.9,4.4248]
[1730554985301,3.2078,2481.7,2481.1,3.14856172]
[1730554985495,3.2078,2481.7,2481.6,0.28214]
[1730554985698,3.2078,2481.7,2481.1,3.14856172]
[1730554985699,3.3833,2481.8,2481.2,0.70547]
[1730554985901,3.3833,2481.8,2481.7,0.28213]
[1730554990109,12.68688042,2482.2,2481.9,0.2821]
[1730554990305,5.1252,2482.2,2481.6,0.28214]
[1730554990497,5.1252,2482.2,2482.0,0.28209]
[1730554990698,4.0288,2482.1,2482.0,0.28209]
[1730554991002,3.4685,2482.2,2482.1,0.28208]
[1730554993003,1.7111,2482.2,2482.1,0.28208]
[1730554993307,3.2078,2482.3,2482.2,0.28207]
[1730554993709,3.2078,2483.2,2482.2,10.38516172]
[1730554993920,3.3352,2483.2,2482.8,0.282]
[1730554994207,3.3352,2483.2,2483.0,0.28197]
[1730554994402,3.3352,2483.2,2482.8,3.2078]
[1730554994709,3.3352,2483.2,2483.1,0.28197]
[1730554995111,0.28195,2483.4,2482.8,3.2078]
[1730554995112,0.28195,2483.4,2482.9,3.14856172]
[1730554995302,3.2078,2483.6,2482.9,3.14856172]
[1730554995303,4.8749,2483.6,2482.9,3.14856172]
[1730554995503,0.28194,2483.4,2483.2,0.28196]
[1730554995908,0.28193,2483.5,2483.2,0.28196]
[1730554996102,0.28195,2483.4,2483.2,0.28196]
[1730554996308,0.28193,2483.5,2483.1,0.28196]
[1730554996622,3.2078,2483.3,2482.8,1.195]
[1730554996909,0.28196,2483.2,2482.9,0.28199]
[1730554997111,3.2078,2483.3,2482.7,1.195]
[1730554997112,0.28197,2483.1,2482.7,1.195]
[1730554997310,0.28197,2483.1,2483.0,0.28198]
[1730554997511,5.53573861,2483.6,2483.0,0.28198]
[1730554997512,0.28196,2483.2,2483.0,0.28198]
[1730554997810,0.80413946,2483.9,2482.7,1.195]
[1730554997811,1.55797162,2484.2,2483.8,0.28189]
[1730554998109,6.7285,2485.0,2484.1,7.07643861]
[1730554998312,0.28178,2484.8,2484.5,0.28181]
[1730554998504,0.28179,2484.8,2484.5,0.28181]
[1730554998709,0.28178,2484.8,2484.5,0.28181]
[1730554999014,6.7285,2485.0,2484.4,3.2078]
[1730554999217,6.7285,2485.0,2484.1,7.07643861]
[1730554999508,0.28177,2484.9,2484.4,0.28181]
[1730554999703,6.7285,2485.0,2484.5,0.28181]
[1730554999704,0.28178,2484.8,2484.5,0.28181]
[1730554999904,0.28179,2484.8,2484.5,0.28181]
[1730555000620,0.28179,2484.8,2484.5,0.2818]
[1730555001211,0.28179,2484.8,2484.5,0.28181]
[1730555001415,3.80246,2485.0,2484.7,0.28179]
[1730555001610,0.2818,2484.7,2484.4,3.48962]
[1730555001815,0.2818,2484.7,2484.5,0.28181]
[1730555002016,1.55797162,2486.8,2485.9,2.712]
[1730555002214,0.2816,2486.4,2485.9,2.99365]
[1730555002519,3.2078,2486.6,2485.8,7.07643861]
[1730555002720,1.7059,2486.5,2485.8,7.07643861]
[1730555003009,0.28162,2486.2,2485.8,7.35809861]
[1730555003213,1.7059,2486.5,2485.8,7.35809861]
[1730555003406,1.7059,2486.5,2485.8,7.07643861]
[1730555003801,1.98749,2486.5,2486.1,3.2078]
[1730555004013,1.7059,2486.5,2486.1,7.07643861]
[1730555004208,1.7059,2486.5,2486.2,0.28161]
[1730555004416,1.7059,2486.5,2486.1,7.35806861]
[1730555004611,4.0224,2486.4,2486.1,3.2078]
[1730555004803,3.2078,2487.2,2486.1,7.07643861]
[1730555005006,1.6882,2487.4,2486.7,3.86863861]
[1730555005007,0.28154,2487.0,2486.7,3.86863861]
[1730555005213,3.2078,2486.9,2486.3,3.2078]
[1730555005515,0.28157,2486.7,2486.2,4.15025861]
[1730555005711,0.28157,2486.7,2486.3,0.28161]
[1730555006215,0.28158,2486.6,2486.3,3.2078]
[1730555006413,3.2078,2487.0,2486.2,3.86863861]
[1730555006618,3.2078,2487.2,2486.3,3.2078]
[1730555006815,0.28157,2486.7,2486.3,3.4894]
[1730555007018,0.28157,2486.7,2486.2,3.86863861]
[1730555007219,3.2078,2487.2,2486.3,3.2078]
[1730555007515,1.7059,2487.3,2486.4,0.28159]
[1730555007516,0.28155,2486.8,2486.4,0.28159]
[1730555008215,0.28155,2486.8,2486.2,7.07643861]
[1730555008216,1.7059,2487.3,2486.5,3.2078]
[1730555008416,0.28153,2487.0,2486.6,0.28157]
[1730555008613,4.9137,2487.3,2486.5,3.2078]
[1730555008810,0.28154,2486.9,2486.5,3.48938]
[1730555009213,4.9137,2487.3,2486.5,3.2078]
[1730555009419,4.9137,2487.3,2486.4,0.28159]
[1730555009625,0.28155,2486.9,2486.5,0.28158]
[1730555009816,4.9137,2487.3,2486.2,7.07643861]
[1730555010011,0.28156,2486.8,2486.2,7.07643861]
[1730555010213,0.28156,2486.8,2486.4,0.2816]
[1730555010411,0.28157,2486.7,2486.3,0.2816]
[1730555010712,0.28156,2486.8,2486.4,0.28159]
[1730555010917,3.2078,2487.0,2486.3,0.2816]
[1730555011510,0.28156,2486.8,2486.2,3.2078]
[1730555011712,0.28154,2486.9,2486.5,3.48938]
[1730555011912,0.28155,2486.9,2486.5,0.28158]
[1730555012517,0.28155,2486.9,2486.4,3.2078]
[1730555012518,3.2078,2487.2,2486.4,3.2078]
[1730555012712,0.28156,2486.8,2486.4,3.48939]
[1730555013520,3.2078,2487.2,2486.4,3.48939]
[1730555013822,0.28156,2486.8,2486.4,3.48939]
[1730555014017,0.28156,2486.8,2486.4,3.2078]
[1730555014319,0.28156,2486.8,2486.4,3.48939]
[1730555015028,0.28156,2486.8,2485.1,1.8692]
[1730555015029,0.28167,2485.8,2485.4,0.28171]
[1730555015221,0.28168,2485.7,2485.3,4.90452]
[1730555015520,0.28169,2485.7,2485.3,4.6228]
[1730555015912,0.28169,2485.6,2485.3,3.2078]
[1730555016221,0.28168,2485.7,2485.3,3.2078]
[1730555016518,0.28169,2485.6,2485.3,3.2078]
[1730555016716,0.28171,2485.4,2485.3,3.2078]
[1730555016923,3.86863861,2485.6,2484.9,4.6228]
[1730555017111,3.86863861,2485.6,2485.0,0.28175]
[1730555017420,3.2078,2485.7,2484.9,3.2078]
[1730555017616,0.2817,2485.5,2485.0,1.69675]
[1730555017914,3.86863861,2485.9,2485.0,1.415]
[1730555018116,0.2817,2485.5,2485.1,0.28174]
[1730555018323,0.28172,2485.4,2485.0,1.69675]
[1730555018716,0.28174,2485.1,2484.9,3.2078]
[1730555019216,7.07643861,2485.5,2484.9,3.2078]
[1730555019419,0.28173,2485.2,2484.9,3.2078]
[1730555020011,7.07643861,2485.5,2484.9,3.48956]
[1730555020217,7.07643861,2485.5,2484.9,3.2078]
[1730555020418,0.28174,2485.2,2484.9,3.2078]
[1730555020621,0.28174,2485.2,2484.9,3.48957]
[1730555020915,0.28174,2485.2,2484.9,3.2078]
[1730555021116,7.07643861,2485.5,2484.6,1.415]
[1730555021317,0.28174,2485.1,2484.7,0.28178]
[1730555022023,8.81953861,2485.5,2484.6,3.2078]
[1730555022219,3.2078,2485.2,2484.5,1.415]
[1730555022425,3.2078,2485.2,2484.7,0.28179]
[1730555022426,0.28175,2485.1,2484.7,0.28179]
[1730555023125,0.28174,2485.2,2484.7,0.28178]
[1730555023328,0.28174,2485.2,2484.8,0.28177]
[1730555023627,6.6984,2485.5,2484.8,0.28177]
[1730555024023,0.28171,2485.4,2484.7,1.69678]
[1730555024221,0.28175,2485.1,2484.8,0.28178]
[1730555024730,0.28174,2485.2,2484.9,0.28176]
[1730555025321,6.6984,2485.5,2484.9,0.28176]
[1730555025629,0.28175,2485.1,2484.9,0.28176]
[1730555025821,6.6984,2485.5,2484.7,1.347]
[1730555026016,0.28174,2485.2,2484.9,0.28176]
[1730555026222,6.6984,2485.5,2484.9,0.28176]
[1730555026223,0.28175,2485.1,2484.9,0.28176]
[1730555026724,1.02605625,2487.4,2485.4,3.2078]
[1730555026930,1.02605625,2487.4,2485.0,20.78007172]
[1730555026931,0.70363,2487.7,2487.1,3.86863861]
[1730555027127,0.70363,2487.7,2486.8,3.86863861]
[1730555027128,0.70364,2487.7,2486.8,3.86863861]
[1730555027627,0.70369,2487.5,2486.8,3.86863861]
[1730555027824,0.28154,2487.0,2486.8,3.86863861]
[1730555028415,0.28152,2487.1,2486.8,3.86863861]
[1730555028614,3.91148,2487.6,2486.8,4.15018861]
[1730555028815,3.2078,2487.6,2486.7,3.2078]
[1730555029019,1.7866,2487.8,2486.4,7.07643861]
[1730555029020,0.70377,2487.2,2486.4,7.07643861]
[1730555029220,1.8039,2487.1,2486.4,7.07643861]
[1730555029420,0.28159,2486.5,2486.4,7.07643861]
[1730555029627,0.28159,2486.5,2486.4,3.2078]
[1730555029829,4.0216,2486.5,2485.9,3.86863861]
[1730555030014,3.2078,2486.6,2485.9,3.86863861]
[1730555030015,0.28164,2486.1,2485.9,0.28165]
[1730555030421,0.28162,2486.2,2485.7,0.28167]
[1730555030624,0.28167,2485.8,2485.6,4.15032861]
[1730555030926,0.70405,2486.3,2485.3,3.2078]
[1730555030927,3.2078,2486.0,2485.3,3.2078]
[1730555031115,0.2817,2485.6,2485.0,5.59543861]
[1730555031320,3.2078,2485.9,2485.0,5.59543861]
[1730555031517,0.28171,2485.5,2485.0,5.59543861]
[1730555031725,0.28171,2485.5,2485.3,0.28172]
[1730555031920,0.28171,2485.4,2485.0,5.59543861]
[1730555032237,0.28171,2485.4,2485.1,0.28174]
[1730555032528,0.70417,2485.8,2485.0,4.15039861]
[1730555032730,0.28172,2485.4,2485.0,3.86863861]
[1730555032922,3.2078,2485.6,2485.0,4.15038861]
[1730555032923,0.28173,2485.3,2485.0,4.15038861]
[1730555033224,3.2078,2485.6,2485.0,4.15038861]
[1730555033225,0.28172,2485.4,2485.0,4.15038861]
[1730555033729,0.28173,2485.3,2485.0,4.15038861]
[1730555034231,0.28172,2485.4,2485.0,4.15038861]
[1730555034421,3.2078,2485.7,2485.0,3.86863861]
[1730555034622,1.55797162,2487.0,2485.7,1.69006]
[1730555034823,1.55797162,2487.0,2485.6,7.07643861]
[1730555034824,1.6805,2487.3,2486.7,3.2078]
[1730555035328,0.28151,2487.2,2486.8,0.28155]
[1730555035531,0.28152,2487.1,2486.8,0.28155]
[1730555035829,1.6805,2487.3,2486.7,3.2078]
[1730555035830,0.28155,2486.8,2486.7,3.2078]
[1730555036040,4.0208,2487.2,2486.4,0.28159]
[1730555036228,0.28158,2486.6,2486.3,3.48941]
[1730555036532,0.2816,2486.4,2486.3,3.2078]
[1730555036733,0.28159,2486.5,2486.3,3.2078]
[1730555037121,3.2078,2487.0,2486.3,3.4894]
[1730555037122,0.28158,2486.6,2486.3,3.4894]
[1730555038228,0.28155,2486.8,2486.3,3.4894]
[1730555038428,1.02605625,2486.9,2486.3,3.2078]
[1730555038727,0.28159,2486.6,2486.3,3.4894]
[1730555038926,0.28159,2486.5,2486.3,3.4894]
[1730555039331,0.2816,2486.4,2486.3,3.2078]
[1730555039526,0.2816,2486.4,2486.2,0.28161]
[1730555039931,4.0224,2486.3,2486.2,0.28161]
[1730555040130,0.28159,2486.5,2486.3,0.2816]
[1730555040336,0.2816,2486.4,2486.2,0.28161]
[1730555040529,0.28143,2488.0,2486.4,0.98558]
[1730555040730,0.28143,2488.0,2486.2,0.19761223]
[1730555040731,3.2078,2488.0,2487.3,3.86863861]
[1730555040929,0.28145,2487.8,2487.5,3.2078]
[1730555041130,4.9442,2488.1,2487.5,3.2078]
[1730555041330,0.2011321,2488.0,2487.5,3.2078]
[1730555041530,3.2078,2487.8,2486.8,3.2078]
[1730555041729,0.28151,2487.2,2486.8,3.48934]
[1730555041927,0.28152,2487.1,2486.8,3.2078]
[1730555042136,0.28152,2487.1,2486.8,3.48935]
[1730555042524,1.8227,2487.4,2486.8,3.2078]
[1730555042729,0.28153,2487.0,2486.7,0.28155]
[1730555042926,0.28152,2487.1,2486.7,0.28155]
[1730555043228,1.8227,2487.4,2486.4,1.506]
[1730555043229,0.20119268,2487.0,2486.4,1.506]
[1730555043430,0.28155,2486.8,2486.5,0.28158]
[1730555043631,3.2078,2487.2,2486.4,1.506]
[1730555043835,0.20121363,2487.1,2486.3,0.2816]
[1730555044037,1.95721363,2487.1,2486.2,3.2078]
[1730555044225,0.28158,2486.6,2486.2,3.48941]
[1730555044427,3.2078,2486.9,2486.2,3.2078]
[1730555044428,0.2816,2486.4,2486.2,3.2078]
[1730555044638,0.28161,2486.4,2486.2,3.2078]
[1730555044831,0.2816,2486.4,2486.2,3.2078]
[1730555045028,3.2078,2486.8,2486.2,3.2078]
[1730555045029,0.28161,2486.3,2486.2,3.2078]
[1730555045933,0.28166,2485.9,2485.5,4.7128]
[1730555046136,0.28165,2486.0,2485.6,0.28168]
[1730555046334,0.28166,2485.9,2485.5,4.99449]
[1730555046531,0.28166,2485.9,2485.6,0.28168]
[1730555046731,0.28162,2486.3,2485.9,0.28165]
[1730555046931,5.7340087,2486.6,2485.8,3.2078]
[1730555046932,0.20125169,2486.2,2485.8,3.2078]
[1730555047127,7.54288613,2486.8,2485.5,5.05007034]
[1730555047128,3.13174335,2487.4,2486.7,0.28156]
[1730555047333,3.2078,2487.8,2487.2,3.2078]
[1730555047334,0.28147,2487.5,2487.2,3.2078]
[1730555047535,0.28147,2487.5,2487.2,3.4893]
[1730555047737,0.28147,2487.6,2487.2,3.4893]
[1730555047944,0.20114956,2487.5,2487.2,3.2078]
[1730555048238,3.2078,2487.8,2487.2,3.2078]
[1730555048443,0.28148,2487.5,2487.2,3.2078]
[1730555048740,0.28145,2487.7,2487.3,0.28149]
[1730555048937,0.20114631,2487.6,2487.3,0.28149]
[1730555049335,10.15567034,2488.4,2486.8,0.28154]
[1730555049336,0.28151,2487.2,2486.8,0.28154]
[1730555049540,3.2078,2487.4,2486.8,3.48934]
[1730555049839,0.20117765,2487.3,2486.8,3.2078]
[1730555050041,0.20117765,2487.3,2486.5,3.48938]
[1730555050042,0.28155,2486.9,2486.5,3.48938]
[1730555050242,0.70372,2487.4,2486.5,3.2078]
[1730555050243,3.2078,2487.2,2486.5,3.2078]
[1730555050543,0.28157,2486.6,2486.5,3.2078]
[1730555051548,4.30317,2486.6,2486.5,3.2078]
[1730555052248,4.30317,2486.6,2486.3,0.2816]
[1730555052249,4.30317,2486.6,2486.3,0.28161]
[1730555052446,1.7263,2487.0,2486.2,3.2078]
[1730555052638,0.20121756,2486.9,2486.3,0.2816]
[1730555052839,0.28158,2486.6,2486.3,0.2816]
[1730555054144,4.9341,2487.0,2486.2,3.2078]
[1730555054448,4.9341,2487.0,2486.3,0.2816]
[1730555054449,0.28157,2486.6,2486.3,0.2816]
[1730555055357,1.7263,2487.0,2486.3,0.2816]
[1730555055547,3.40902144,2486.9,2486.2,3.2078]
[1730555055747,1.7263,2487.0,2486.4,0.2816]
[1730555055748,0.28158,2486.6,2486.4,0.2816]
[1730555055961,0.28158,2486.6,2486.4,0.28159]
[1730555056962,0.28157,2486.7,2486.4,0.28159]
[1730555057257,1.7263,2487.0,2486.4,0.28159]
[1730555057258,0.28157,2486.6,2486.4,0.28159]
[1730555057647,0.28157,2486.6,2486.2,3.2078]
[1730555057648,0.28159,2486.5,2486.2,3.48941]
[1730555057855,0.2816,2486.4,2486.2,3.48941]
[1730555058055,0.28159,2486.5,2486.3,0.28161]
[1730555058256,0.28159,2486.5,2486.2,3.2078]
[1730555058454,0.28159,2486.5,2486.2,3.48941]
[1730555058657,0.28158,2486.6,2486.3,0.2816]
[1730555059166,0.28158,2486.6,2486.3,0.28161]
[1730555060050,2.43015,2487.0,2485.7,0.28167]
[1730555060051,0.28165,2486.0,2485.7,0.28167]
[1730555060361,3.2078,2486.4,2485.6,3.2078]
[1730555060562,0.20126389,2486.3,2485.6,3.2078]
[1730555060762,0.20126389,2486.3,2485.7,0.28167]
[1730555060763,0.28165,2485.9,2485.7,0.28167]
[1730555060962,1.7749,2486.3,2485.7,0.28167]
[1730555061159,0.28163,2486.1,2485.7,0.28167]
[1730555061358,0.28165,2486.0,2485.7,0.28167]
[1730555061557,0.28166,2485.9,2485.7,0.28167]
[1730555061759,0.28167,2485.8,2485.6,3.2078]
[1730555062358,0.28167,2485.8,2485.5,0.28169]
[1730555062561,0.28168,2485.7,2485.6,3.2078]
[1730555062962,4.0232,2485.7,2485.3,3.48952]
[1730555063157,0.2817,2485.5,2485.3,3.2078]
[1730555063362,0.28171,2485.4,2485.3,3.2078]
[1730555063768,4.30491,2485.4,2485.3,3.2078]
[1730555065766,1.698,2487.0,2485.6,3.2078]
[1730555065960,1.698,2487.0,2486.9,3.2078]
[1730555066160,2.18074357,2487.0,2486.9,3.2078]
[1730555066969,2.18070891,2487.0,2486.9,3.2078]
[1730555067165,2.18070891,2487.0,2485.4,0.4024]
[1730555067166,0.28156,2486.7,2486.6,3.2078]
[1730555067361,0.48274137,2486.7,2486.6,3.2078]
[1730555068264,4.50434137,2486.7,2486.6,3.2078]
[1730555068563,0.2816,2486.4,2486.3,3.2078]
[1730555068769,4.3032,2486.4,2486.3,3.2078]
[1730555068971,4.50444248,2486.4,2486.3,3.2078]
[1730555071163,6.59763531,2486.4,2486.3,3.2078]
[1730555071362,6.31603531,2486.4,2486.1,0.28162]
[1730555071565,0.48286248,2486.3,2486.1,3.48942]
[1730555071762,0.20124248,2486.2,2486.1,3.48942]
[1730555072070,0.28162,2486.2,2486.1,3.2078]
[1730555072264,0.48286248,2486.2,2486.1,3.48943]
[1730555073267,0.20125536,2486.2,2486.1,3.48943]
[1730555073863,0.28162,2486.2,2486.1,3.48943]
[1730555074069,0.48287536,2486.2,2486.1,3.2078]
[1730555075167,0.20125536,2486.2,2486.1,3.48943]
[1730555075570,0.20125536,2486.2,2485.6,0.7042]
[1730555075772,0.28162,2486.2,2486.1,3.2078]
[1730555076070,0.48287371,2486.2,2486.1,3.2078]
[1730555077876,0.48287371,2486.2,2486.1,3.48943]
[1730555077877,0.20125371,2486.2,2486.1,3.48943]
[1730555078062,0.48287371,2486.2,2486.1,3.2078]
[1730555078873,0.48287371,2486.2,2486.1,3.48943]
[1730555078874,0.20125371,2486.2,2486.1,3.48943]
[1730555079374,0.20125371,2486.2,2486.1,3.2078]
[1730555079375,0.48287371,2486.2,2486.1,3.2078]
[1730555079676,2.57606654,2486.2,2486.1,3.2078]
[1730555079972,0.48287371,2486.2,2486.1,3.2078]
[1730555080173,2.57606654,2486.2,2486.1,3.2078]
[1730555082176,2.57606654,2486.2,2486.0,0.28164]
[1730555082375,2.37481283,2486.2,2486.1,3.2078]
[1730555082578,2.57606988,2486.2,2486.1,3.2078]
[1730555082770,2.57606988,2486.2,2486.1,0.4161]
[1730555083075,0.28164,2486.0,2485.9,3.2078]
[1730555083377,2.37823697,2486.0,2485.9,3.2078]
[1730555083576,2.57949402,2486.0,2485.9,3.2078]
[1730555083970,0.48289705,2486.0,2485.9,3.2078]
[1730555084281,6.40085137,2486.0,2485.9,3.2078]
[1730555084573,0.28169,2485.6,2485.5,0.28169]
[1730555084772,0.20125705,2485.6,2485.5,0.28169]
[1730555086578,0.20129512,2485.6,2485.5,0.28169]
[1730555089771,0.20129512,2485.6,2485.2,0.70433]
[1730555089772,2.29770877,2485.7,2485.3,0.28172]
[1730555089974,0.20129512,2485.6,2485.5,0.2817]
[1730555090981,0.20129356,2485.6,2485.5,0.2817]
[1730555091483,7.00945377,2486.3,2485.5,0.2817]
[1730555091794,47.94076944,2494.2,2485.5,0.2817]
[1730555091795,3.2078,2488.2,2486.8,0.70386]
[1730555091980,3.4892,2488.2,2487.7,0.28145]
[1730555092282,0.28141,2488.1,2487.6,4.14575675]
[1730555092585,0.28141,2488.1,2487.6,3.86429675]
[1730555092776,0.28139,2488.3,2487.7,0.28145]
[1730555093082,4.31113,2488.8,2487.6,3.86429675]
[1730555093083,3.2078,2488.7,2487.6,3.86429675]
[1730555093278,3.2078,2488.7,2487.8,3.48923]
[1730555093672,3.2078,2488.7,2487.8,3.2078]
[1730555093871,3.2078,2488.7,2487.9,4.14571675]
[1730555094271,3.2078,2488.7,2487.9,3.86429675]
[1730555094471,0.28137,2488.5,2488.0,0.28141]
[1730555094670,3.2078,2488.7,2487.9,3.86429675]
[1730555094885,0.28137,2488.5,2488.1,0.2814]
[1730555095182,0.28137,2488.5,2487.9,3.86429675]
[1730555095183,3.2078,2488.7,2488.0,0.28141]
[1730555095481,0.28141,2488.1,2487.8,0.28144]
[1730555095686,3.2078,2488.3,2487.8,0.28144]
[1730555095897,0.28141,2488.1,2487.8,0.28144]
[1730555096087,0.28143,2487.9,2487.6,0.28146]
[1730555096287,3.48923,2487.9,2487.6,0.28146]
[1730555096588,0.28142,2488.0,2487.7,0.28145]
[1730555096783,1.87,2488.1,2487.7,0.28145]
[1730555096983,0.28142,2488.0,2487.7,0.28145]
[1730555097187,0.28143,2487.9,2487.6,0.28145]
[1730555097390,0.28143,2487.9,2487.5,3.86429675]
[1730555097583,0.28143,2487.9,2487.6,0.28145]
[1730555098390,0.28145,2487.8,2487.5,4.14576675]
[1730555099588,0.28143,2487.9,2487.6,0.28145]
[1730555100496,1.8731,2488.0,2487.5,3.86429675]
[1730555100695,0.28143,2487.9,2487.6,0.28145]
[1730555101384,1.8731,2488.0,2487.5,3.86429675]
[1730555101790,0.28145,2487.7,2487.5,3.86429675]
[1730555101983,0.28146,2487.6,2487.3,3.86429675]
[1730555102184,3.2078,2487.7,2487.3,3.86429675]
[1730555102384,0.28146,2487.6,2487.3,4.14578675]
[1730555102584,3.2078,2487.7,2487.3,3.86429675]
[1730555102792,0.28148,2487.4,2487.3,3.86429675]
[1730555102984,7.2278,2487.7,2487.2,3.2078]
[1730555103294,0.28149,2487.4,2487.2,3.2078]
[1730555103585,3.2078,2487.7,2487.2,3.48931]
[1730555103791,0.28148,2487.5,2487.2,3.2078]
[1730555103992,0.28145,2487.7,2487.5,0.28147]
[1730555105185,0.28149,2487.4,2487.2,3.4893]
[1730555105585,3.2078,2489.0,2487.3,16.49835119]
[1730555105787,0.28125,2489.5,2489.0,0.2813]
[1730555105990,6.7496,2489.6,2488.8,3.86429675]
[1730555106188,0.2813,2489.1,2488.9,0.28131]
[1730555106693,0.28131,2489.0,2488.8,4.14561675]
[1730555107192,8.31510037,2489.6,2488.7,3.2078]
[1730555107491,8.31510037,2489.6,2488.4,3.2078]
[1730555107492,0.28135,2488.6,2488.4,3.2078]
[1730555107785,0.70325,2489.1,2488.4,3.2078]
[1730555107786,0.70325,2489.1,2488.4,3.48916]
[1730555107991,0.28135,2488.6,2488.4,3.48916]
[1730555108190,0.28135,2488.6,2488.4,3.2078]
[1730555108390,4.9165,2489.0,2488.4,3.2078]
[1730555108595,0.28136,2488.5,2488.4,3.2078]
[1730555111001,4.29976,2488.5,2488.4,3.2078]
[1730555111193,4.29976,2488.5,2486.6,17.06743048]
[1730555111194,0.28143,2487.9,2487.8,3.2078]
[1730555111997,0.28145,2487.8,2487.6,0.28146]
[1730555113493,0.28145,2487.7,2487.5,0.28147]
[1730555113997,0.28145,2487.7,2487.4,5.26608]
[1730555114196,0.28147,2487.5,2487.2,0.2815]
[1730555114389,5.65329675,2488.2,2487.3,0.28149]
[1730555114701,0.28148,2487.5,2487.2,0.2815]
[1730555114894,0.28148,2487.5,2487.2,0.28151]
[1730555115095,0.28148,2487.5,2487.3,0.28149]
[1730555115292,0.28147,2487.6,2487.3,0.28149]
[1730555115892,3.2078,2487.9,2487.1,3.2078]
[1730555116093,0.28148,2487.5,2487.2,0.2815]
[1730555116699,0.28145,2487.7,2487.4,3.48928]
[1730555117200,8.86109675,2488.2,2487.4,3.48928]
[1730555117397,0.28146,2487.6,2487.4,3.48928]
[1730555118490,3.2078,2487.8,2487.1,3.2078]
[1730555118689,0.2815,2487.3,2487.1,3.48931]
[1730555118899,2.45503,2487.7,2487.1,3.48931]
[1730555119099,0.28147,2487.6,2487.1,3.2078]
[1730555119400,0.28148,2487.5,2487.2,0.2815]
[1730555119598,0.28149,2487.4,2487.2,0.2815]
[1730555119995,0.28148,2487.5,2487.2,0.2815]
[1730555120306,0.28149,2487.4,2487.1,3.2078]
[1730555120598,0.28148,2487.4,2487.2,0.2815]
[1730555120796,0.28148,2487.5,2487.2,0.2815]
[1730555121804,0.28148,2487.5,2487.3,0.28149]
[1730555122101,0.28148,2487.5,2487.2,0.2815]
[1730555122496,0.28149,2487.4,2487.2,0.2815]
[1730555122703,0.28148,2487.5,2487.2,0.2815]
[1730555122903,3.2078,2487.8,2487.1,3.2078]
[1730555123101,0.28147,2487.6,2487.3,0.28149]
[1730555123495,3.2078,2487.8,2487.1,3.2078]
[1730555123802,0.28148,2487.5,2487.3,0.28149]
[1730555123996,3.2078,2487.8,2487.1,3.2078]
[1730555123997,0.28149,2487.4,2487.2,0.2815]
[1730555124499,3.2078,2487.8,2487.1,3.2078]
[1730555124701,0.28149,2487.4,2487.2,0.28151]
[1730555125804,0.28149,2487.4,2487.1,3.48931]
[1730555126404,0.28149,2487.4,2487.1,3.2078]
[1730555126596,1.7295,2487.7,2487.1,3.2078]
[1730555126802,1.7295,2487.7,2487.1,3.48931]
[1730555127004,0.28149,2487.4,2487.2,0.2815]
[1730555127905,1.7295,2487.7,2487.1,3.2078]
[1730555128106,0.28148,2487.5,2487.3,0.28149]
[1730555128307,0.28149,2487.4,2487.2,0.2815]
[1730555129105,0.28151,2487.2,2487.1,3.2078]
[1730555129301,0.70366,2487.6,2486.7,4.9744]
[1730555129302,3.86429675,2487.6,2486.7,4.9744]
[1730555129500,0.28156,2486.7,2486.5,0.28158]
[1730555129701,0.28157,2486.7,2486.5,0.28158]
[1730555130001,0.2816,2486.4,2486.2,3.48942]
[1730555130197,0.70386,2486.9,2486.2,3.2078]
[1730555130398,3.91164,2487.0,2486.3,3.86429675]
[1730555130399,3.2078,2487.0,2486.3,3.86429675]
[1730555130606,3.2078,2487.0,2486.3,7.07209675]
[1730555130804,0.28156,2486.8,2486.6,0.28157]
[1730555131301,3.91156,2487.3,2486.3,3.2078]
[1730555131508,0.28156,2486.8,2486.6,0.28157]
[1730555131702,3.91156,2487.3,2486.3,3.2078]
[1730555131703,3.2078,2487.3,2486.3,3.2078]
[1730555131903,0.28153,2487.0,2486.8,0.28155]
[1730555132198,3.2078,2487.3,2486.8,0.28155]
[1730555132199,0.28152,2487.1,2486.8,0.28155]
[1730555132706,0.28153,2487.0,2486.8,0.28155]
[1730555133007,3.2078,2487.3,2486.9,0.28154]